fUSD/lending_fUSD_20251225
["ID","MTS","AMOUNT","RATE_DAILY","PERIOD"]
[399815249,1766697040624,-200.0,0.00016149,2]
[399815250,1766697040635,-207.4,0.00016149,2]
[399815251,1766697040645,-215.0738,0.00016149,2]
[399815252,1766697040655,-223.0315306,0.00016149,2]
[399815253,1766697040665,-231.28369723,0.00016149,2]
[399815254,1766697040675,-239.84119403,0.00016149,2]
[399815255,1766697040685,-248.71531821,0.00016149,2]
[399815256,1766697040694,-257.91778498,0.00016149,2]
[399815257,1766697040705,-267.46074303,0.00016149,2]
[399815258,1766697040719,-277.35679052,0.00016149,2]
[399815259,1766697040729,-500.0,0.00016149,2]
[399815260,1766697040739,-500.0,0.00016149,2]
[399815261,1766697040751,-574.12855637,0.00016149,2]
[399815262,1766697040762,-500.0,0.00016149,2]
[399815263,1766697040771,-500.0,0.00016149,2]
[399815264,1766697040782,-500.0,0.00016149,2]
[399815265,1766697040794,-500.0,0.00016149,2]
[399815266,1766697040804,-500.0,0.00016149,2]
[399815267,1766697040818,-500.0,0.00016149,2]
[399815268,1766697040829,-500.0,0.00016149,2]
[399815269,1766697040838,-500.0,0.00016149,2]
[399815270,1766697040849,-500.0,0.00016149,2]
[399815271,1766697040859,-322.6107,0.00016149,2]
[399815272,1766697040869,-500.0,0.00016149,2]
[399815273,1766697040879,-500.0,0.00016149,2]
[399815274,1766697040890,-500.0,0.00016149,2]
[399815275,1766697040900,-500.0,0.00016149,2]
[399815276,1766697040910,-500.0,0.00016149,2]
[399815277,1766697040920,-500.0,0.00016149,2]
[399815278,1766697040930,-500.0,0.00016149,2]
[399815279,1766697040941,-250.0,0.00016149,2]
[399815280,1766697040951,-500.0,0.00016149,2]
[399815281,1766697040962,-250.0,0.00016149,2]
[399815282,1766697040972,-500.0,0.00016149,2]
[399815283,1766697040982,-250.0,0.00016149,2]
[399815284,1766697040992,-500.0,0.00016149,2]
[399815285,1766697041002,-250.0,0.00016149,2]
[399815286,1766697041013,-500.0,0.00016149,2]
[399815287,1766697041023,-250.0,0.00016149,2]
[399815288,1766697041033,-250.0,0.00016149,2]
[399815289,1766697041043,-250.0,0.00016149,2]
[399815290,1766697041053,-151.0,0.00016149,2]
[399815291,1766697041063,-186.66093114,0.00016149,2]
[399815292,1766697041072,-620.0,0.00016149,2]
[399815293,1766697041082,-578.20924308,0.00016149,2]
[399815294,1766697041092,-151.0,0.00016149,2]
[399815295,1766697041101,-600.04737314,0.00016151,2]
[399815296,1766697041111,-3591.19410849,0.00016172,2]
[399815297,1766697041121,-500.0,0.00016183,2]
[399815298,1766697041131,-500.0,0.00016183,2]
[399815299,1766697041142,-479.05040621,0.00016183,2]
[399815300,1766697041152,-500.0,0.00016183,2]
[399815301,1766697041162,-500.0,0.00016183,2]
[399815302,1766697041176,-500.0,0.00016183,2]
[399815303,1766697041187,-500.0,0.00016183,2]
[399815304,1766697041197,-500.0,0.00016183,2]
[399815305,1766697041207,-500.0,0.00016183,2]
[399815306,1766697041217,-500.0,0.00016183,2]
[399815307,1766697041228,-500.0,0.00016183,2]
[399815308,1766697041239,-500.0,0.00016183,2]
[399815309,1766697041248,-511.36256137,0.00016183,2]
[399815310,1766697041259,-500.0,0.00016183,2]
[399815311,1766697041269,-500.0,0.00016183,2]
[399815312,1766697041279,-500.0,0.00016183,2]
[399815313,1766697041290,-500.0,0.00016183,2]
[399815314,1766697041300,-575.79192848,0.00016183,2]
[399815315,1766697041311,-165.6820002,0.00016183,2]
[399815316,1766697041321,-500.0,0.00016183,2]
[399815317,1766697041337,-500.0,0.00016183,2]
[399815318,1766697041347,-500.0,0.00016183,2]
[399815319,1766697041357,-310.71387342,0.00016183,2]
[399815320,1766697041366,-500.0,0.00016183,2]
[399815321,1766697041376,-374.62630922,0.00016183,2]
[399815322,1766697041386,-500.0,0.00016219,2]
[399815323,1766697041396,-346.14830516,0.00016248,2]
[399815324,1766697041406,-9451.92145263,0.00016271,2]
[399815325,1766697041417,-3591.19410849,0.00016318,2]
[399815326,1766697041427,-164.93940702,0.0001632,2]
[399815327,1766697041437,-600.04737314,0.00016339,2]
[399815328,1766697041448,-9451.92145263,0.00016397,2]
[399815329,1766697041458,-1511.0,0.00016403,2]
[399815330,1766697041468,-1511.0,0.00016412,2]
[399815331,1766697041478,-1136.0,0.00016419,2]
[399815332,1766697041488,-500.0,0.00016438,2]
[399815333,1766697041498,-212.99495553,0.00016438,2]
[399815334,1766697041509,-13707.45,0.00016438,2]
[399815335,1766697041519,-3591.19410849,0.00016463,2]
[399815336,1766697041529,-1610.0,0.0001649,2]
[399815337,1766697041540,-3459.0,0.0001649,2]
[399815338,1766697041553,-1327.0,0.0001649,2]
[399815339,1766697041566,-9451.92145263,0.00016523,2]
[399815340,1766697041576,-600.04737314,0.00016526,2]
[399815341,1766697041587,-1271.446,0.00016545,2]
[399815342,1766697041596,-432.0,0.00016545,2]
[399815343,1766697041606,-1211.891,0.00016545,2]
[399815344,1766697041616,-919.814,0.00016545,2]
[399815345,1766697041626,-2430.0,0.00016545,2]
[399815346,1766697041636,-6534.0,0.00016545,2]
[399815347,1766697041647,-4807.0,0.00016545,2]
[399815348,1766697041657,-3591.19410849,0.00016609,2]
[399815349,1766697041667,-164.93940702,0.0001661,2]
[399815350,1766697041678,-1511.0,0.00016619,2]
[399815351,1766697041688,-250.0,0.00016639,2]
[399815352,1766697041700,-9451.92145263,0.00016648,2]
[399815353,1766697041712,-1726.1460497,0.0001666,2]
[399815354,1766697041723,-595.37131296,0.00016697,2]
[399815355,1766697041733,-151.0,0.00016697,2]
[399815356,1766697041746,-150.0,0.00016699,2]
[399815357,1766697041756,-164.63,0.00016712,2]
[399815358,1766697041766,-600.04737314,0.00016713,2]
[399815359,1766697041776,-366.0,0.00016729,2]
[399815360,1766697041786,-226.54246888,0.00016731,2]
[399815361,1766697041796,-500.0,0.00016731,2]
[399815362,1766697041806,-1000.0,0.00016731,2]
[399815363,1766697041816,-1000.0,0.00016731,2]
[399815364,1766697041826,-675.89091811,0.00016731,2]
[399815365,1766697041836,-500.0,0.00016731,2]
[399815366,1766697041847,-222.04159557,0.00016731,2]
[399815367,1766697041859,-211.71097103,0.00016731,2]
[399815368,1766697041869,-1000.0,0.00016731,2]
[399815369,1766697041880,-500.0,0.00016731,2]
[399815370,1766697041891,-500.0,0.00016731,2]
[399815371,1766697041901,-1000.0,0.00016735,2]
[399815372,1766697041912,-150.0,0.00016738,2]
[399815373,1766697041922,-150.0,0.00016747,2]
[399815374,1766697041932,-3591.19410849,0.00016754,2]
[399815375,1766697041948,-1511.0,0.00016755,2]
[399815376,1766697041960,-150.0,0.0001677,2]
[399815377,1766697041972,-9451.92145263,0.00016774,2]
[399815378,1766697041983,-1000.0,0.00016776,2]
[399815379,1766697041995,-1000.0,0.00016784,2]
[399815380,1766697042006,-1000.0,0.00016789,2]
[399815381,1766697042016,-1511.0,0.00016795,2]
[399815382,1766697042026,-1000.0,0.00016817,2]
[399815383,1766697042036,-200.0,0.00016863,2]
[399815384,1766697042046,-200.0,0.00016864,2]
[399815385,1766697042055,-200.0,0.00016864,2]
[399815386,1766697042065,-1000.0,0.00016875,2]
[399815387,1766697042075,-464.99,0.00016887,2]
[399815388,1766697042085,-200.45994766,0.00016895,2]
[399815389,1766697042094,-346.14830516,0.00016899,2]
[399815390,1766697042105,-532.23,0.00016899,2]
[399815391,1766697042115,-515.83487979,0.00016899,2]
[399815392,1766697042126,-515.83487979,0.000169,2]
[399815393,1766697042136,-10000.0,0.000169,2]
[399815394,1766697042145,-1926.43051864,0.000169,3]
[399815395,1766697042155,-170.28248417,0.000169,2]
[399815396,1766697042165,-164.93940702,0.000169,2]
[399815397,1766697042175,-9451.92145263,0.000169,2]
[399815398,1766697042185,-4210.01963503,0.000169,2]
[399815399,1766697042195,-15481.55867862,0.000169,2]
[399815400,1766697042205,-600.04737314,0.000169,2]
[399815401,1766697042214,-3591.19410849,0.000169,2]
[399815402,1766697042225,-515.83487979,0.000169,2]
[399815403,1766697042235,-1000.0,0.00016913,2]
[399815404,1766697042245,-150.0,0.00016918,2]
[399815405,1766697042255,-1000.0,0.00016931,2]
[399815406,1766697042265,-150.0,0.00016931,2]
[399815407,1766697042275,-150.0,0.00016931,2]
[399815408,1766697042285,-1000.0,0.00016948,2]
[399815409,1766697042295,-1000.0,0.00016948,2]
[399815410,1766697042305,-1000.0,0.00016948,2]
[399815411,1766697042315,-1000.0,0.00016948,2]
[399815412,1766697042324,-1000.0,0.00016948,2]
[399815413,1766697042334,-1000.0,0.00016948,2]
[399815414,1766697042344,-1000.0,0.00016948,2]
[399815415,1766697042354,-1000.0,0.00016953,2]
[399815416,1766697042364,-1000.0,0.00016953,2]
[399815417,1766697042374,-1000.0,0.00016953,2]
[399815418,1766697042384,-1000.0,0.00016953,2]
[399815419,1766697042393,-916.272,0.00016953,2]
[399815420,1766697042403,-150.0,0.00016963,2]
[399815421,1766697042413,-1135.94296454,0.00016966,2]
[399815422,1766697042423,-150.0,0.00016966,2]
[399815423,1766697042434,-908.68741303,0.0001697,2]
[399815424,1766697042444,-150.0,0.00016973,2]
[399815425,1766697042454,-150.0,0.00016973,2]
[399815426,1766697042464,-500.0,0.00016973,2]
[399815427,1766697042473,-150.0,0.00016973,2]
[399815428,1766697042483,-150.0,0.00016986,2]
[399815429,1766697042493,-150.0,0.00016986,2]
[399815430,1766697042503,-214.0,0.0001699,2]
[399815431,1766697042516,-151.0,0.00016996,2]
[399815432,1766697042526,-151.0,0.00016997,2]
[399815433,1766697042536,-150.0,0.00016998,2]
[399815434,1766697042547,-3018.5344093,0.00016999,2]
[399815435,1766697042557,-661645.3184131,0.00016999,2]
[399815436,1766697042567,-300.0,0.00016999,2]
[399815437,1766697042577,-431.79735166,0.00016999,2]
[399815438,1766697042587,-334.58918112,0.00016999,2]
[399815439,1766697042597,-300.0,0.00016999,2]
[399815440,1766697042607,-532.23,0.00016999,2]
[399815441,1766697042617,-532.23,0.00016999,2]
[399815442,1766697042626,-532.23,0.00016999,2]
[399815443,1766697042636,-532.23,0.00016999,2]
[399815444,1766697042645,-532.23,0.00016999,2]
[399815445,1766697042655,-532.23,0.00016999,2]
[399815446,1766697042665,-532.23,0.00016999,2]
[399815447,1766697042674,-532.23,0.00016999,2]
[399815448,1766697042684,-532.23,0.00016999,2]
[399815449,1766697042693,-532.23,0.00016999,2]
[399815450,1766697042706,-532.23,0.00016999,2]
[399815451,1766697042715,-532.23,0.00016999,2]
[399815452,1766697042725,-532.23,0.00016999,2]
[399815453,1766697042735,-532.23,0.00016999,2]
[399815454,1766697042747,-532.23,0.00016999,2]
[399815455,1766697042756,-532.23,0.00016999,2]
[399815456,1766697042766,-532.23,0.00016999,2]
[399815457,1766697042777,-532.23,0.00016999,2]
[399815458,1766697042788,-532.29545808,0.00016999,2]
[399815459,1766697042798,-1813672.358776,0.00017,2]
[399815489,1766697043627,-151.0,0.00016054,2]
[399815491,1766697043637,-564.0,0.00016545,2]
[399815493,1766697043647,-884.7566905,0.00017,2]
[399815496,1766697043668,-195542.13897345,0.00017,2]
[399815498,1766697043680,-358.46845774,0.00017,2]
[399815500,1766697043691,-35708.77727969,0.00017,2]
[399815504,1766697043720,-1825.84649464,0.00017,2]
[399815506,1766697043732,-500.0,0.00017,2]
[399815508,1766697043744,-301.1,0.00017,2]
[399815510,1766697043756,-73586.90939043,0.00017,2]
[399815512,1766697043767,-345.7829875,0.00017,2]
[399815515,1766697043779,-2365.08758627,0.00017,2]
[399815517,1766697043791,-89351.42199283,0.00017,2]
[399815519,1766697043803,-1001.9863755,0.00017,2]
[399815523,1766697043829,-151083.41126464,0.00017,2]
[399815525,1766697043841,-1620.7380464,0.00017,2]
[399815527,1766697043853,-276.93361131,0.00017,2]
[399815529,1766697043867,-37330.54728369,0.00017,2]
[399815595,1766697046086,-51697.06739446,0.00017,2]
[399815596,1766697046098,-4500.86469904,0.00017,2]
[399815597,1766697046183,-791.07285415,0.00017,2]
[399815598,1766697046195,-949.28376151,0.00017,2]
[399815599,1766697046207,-373.96952708,0.00017,2]
[399815600,1766697046222,-21044.76324447,0.00017,2]
[399815601,1766697046233,-3275.848593,0.00017,2]
[399815602,1766697046245,-4302.89348897,0.00017,2]
[399815603,1766697046257,-616.0,0.00017,2]
[399815604,1766697046269,-357.44392793,0.00017,2]
[399815605,1766697046356,-8911.79410613,0.00017,2]
[399815606,1766697046368,-2486.13672743,0.00017,2]
[399815614,1766697504215,158.75,7.416e-05,2]
[399815615,1766697504412,158.75,8.091e-05,2]
[399815616,1766697504638,158.75,8.765e-05,2]
[399815617,1766697504844,158.75,9.439e-05,2]
[399815618,1766697505047,158.75,0.00010113,2]
[399815619,1766697505247,158.75,0.00010787,2]
[399815620,1766697506060,158.75,0.00011462,2]
[399815622,1766697607474,-158.75,0.00012136,2]
[399815623,1766697607498,-25.37910911,0.00012136,2]
[399815624,1766697648156,300.0,0.00032877,120]
[399815625,1766697679273,300.0,0.00032877,120]
[399815626,1766697692548,300.0,0.00032877,120]
[399815627,1766697725027,300.0,0.00032877,120]
[399815628,1766697819959,173.75,0.00031507,120]
[399815657,1766698232262,-158.75,0.0001281,2]
[399815658,1766698232273,-195.0,0.0001308,2]
[399815659,1766698232283,-195.0,0.0001335,2]
[399815660,1766698232293,-195.0,0.0001335,2]
[399815661,1766698232303,-158.75,0.00013484,2]
[399815662,1766698232313,-195.0,0.00013487,2]
[399815663,1766698232324,-1000.0,0.00013699,2]
[399815664,1766698232334,-193.0,0.00014091,2]
[399815665,1766698232343,-157.88172906,0.00014091,2]
[399815685,1766698238151,-37.11827094,0.00014091,2]
[399815686,1766698238161,-600.0,0.00014091,2]
[399815687,1766698238171,-600.0,0.00014091,2]
[399815688,1766698238182,-109.88172902,0.00014091,2]
[399815689,1766698238194,-490.11827098,0.00014091,2]
[399815690,1766698238204,-600.0,0.00014091,2]
[399815691,1766698238214,-181.00680735,0.00014091,2]
[399815692,1766698238282,-418.99319265,0.00014091,2]
[399815693,1766698238292,-2500.0,0.00014091,2]
[399815694,1766698238302,-1161.52176533,0.00014091,2]
[399815853,1766698240162,-1338.47823467,0.00014091,2]
[399815855,1766698240171,-2500.0,0.00014091,2]
[399815857,1766698240182,-900.79620767,0.00014091,2]
[399815859,1766698240191,-300.0,0.00014091,2]
[399815861,1766698240200,-300.0,0.00014091,2]
[399815862,1766698240210,-300.0,0.00014091,2]
[399815863,1766698240219,-300.0,0.00014091,2]
[399815864,1766698240229,-158.75,0.00014159,2]
[399815865,1766698240240,-3240.0,0.00014409,2]
[399815866,1766698240250,-159.97,0.00014482,2]
[399815867,1766698240260,-183.93,0.00014491,2]
[399815868,1766698240270,-200.0,0.00014514,2]
[399815869,1766698240279,-158.75,0.00014833,2]
[399815870,1766698240289,-500.0,0.00015123,2]
[399815871,1766698240299,-150.0,0.00015229,2]
[399815872,1766698240308,-1200.0,0.00015287,2]
[399815873,1766698240317,-300.0,0.00015287,2]
[399815874,1766698240327,-150.0,0.00015288,2]
[399815875,1766698240336,-150.0,0.00015288,2]
[399815876,1766698240345,-150.0,0.00015288,2]
[399815877,1766698240355,-150.0,0.00015288,2]
[399815878,1766698240364,-150.0,0.00015288,2]
[399815879,1766698240373,-150.0,0.00015288,2]
[399815880,1766698240383,-150.0,0.00015288,2]
[399815881,1766698240392,-300.0,0.00015402,2]
[399815882,1766698240402,-500.0,0.00015402,2]
[399815883,1766698240411,-500.0,0.00015402,2]
[399815884,1766698240420,-500.0,0.00015402,2]
[399815885,1766698240429,-500.0,0.00015402,2]
[399815886,1766698240439,-500.0,0.00015402,2]
[399815887,1766698240448,-500.0,0.00015402,2]
[399815888,1766698240458,-500.0,0.00015402,2]
[399815889,1766698240467,-500.0,0.00015402,2]
[399815890,1766698240476,-500.0,0.00015402,2]
[399815891,1766698240486,-176.12799875,0.00015402,2]
[399815892,1766698240495,-500.0,0.00015402,2]
[399815893,1766698240504,-500.0,0.00015402,2]
[399815895,1766698240514,-500.0,0.00015402,2]
[399815897,1766698240524,-500.0,0.00015402,2]
[399815899,1766698240533,-500.0,0.00015402,2]
[399815901,1766698240542,-500.0,0.00015402,2]
[399815903,1766698240551,-500.0,0.00015402,2]
[399815905,1766698240560,-500.0,0.00015402,2]
[399815907,1766698240570,-500.0,0.00015402,2]
[399815909,1766698240579,-500.0,0.00015402,2]
[399815911,1766698240588,-500.0,0.00015402,2]
[399815913,1766698240598,-500.0,0.00015402,2]
[399815915,1766698240607,-500.0,0.00015402,2]
[399815917,1766698240617,-500.0,0.00015402,2]
[399815919,1766698240627,-500.0,0.00015402,2]
[399815921,1766698240637,-500.0,0.00015402,2]
[399815923,1766698240646,-500.0,0.00015402,2]
[399815925,1766698240656,-69174.82642213,0.00015403,2]
[399815926,1766698240667,-323.89859132,0.00015403,2]
[399815927,1766698240679,-3524.0199998,0.00015403,2]
[399815928,1766698240690,-1059.80161734,0.00015403,2]
[399815929,1766698240713,-521.79772144,0.00015403,2]
[399815930,1766698240724,-1320.105,0.00015403,2]
[399815931,1766698240735,-332.13228803,0.00015403,2]
[399815932,1766698240747,-1427.5027801,0.00015403,2]
[399815933,1766698240758,-865.13590181,0.00015403,2]
[399815934,1766698240770,-4480.8035198,0.00015403,2]
[399815935,1766698240797,-6315.3454475,0.00015403,2]
[399815936,1766698240824,-8021.74311458,0.00015403,2]
[399815937,1766698240835,-902632.88759615,0.00015403,2]
[399815938,1766698240845,-151.0,0.00015497,2]
[399815939,1766698240855,-151.0,0.00015497,2]
[399815940,1766698240864,-151.0,0.00015497,2]
[399815941,1766698240873,-151.0,0.00015497,2]
[399815942,1766698240883,-151.0,0.00015497,2]
[399815943,1766698240893,-151.0,0.00015497,2]
[399815944,1766698240902,-207.4,0.00015497,2]
[399815945,1766698240912,-151.0,0.00015497,2]
[399815946,1766698240921,-151.0,0.00015497,2]
[399815947,1766698240930,-151.0,0.00015497,2]
[399815948,1766698240940,-151.0,0.00015497,2]
[399815949,1766698240950,-151.0,0.00015497,2]
[399815950,1766698240960,-151.0,0.00015503,2]
[399815951,1766698240970,-2169.765,0.00015505,2]
[399815952,1766698240979,-166.895,0.00015505,2]
[399815953,1766698240988,-229.34538255,0.00015505,2]
[399815954,1766698240998,-5458.71036414,0.00015505,2]
[399815955,1766698241008,-500.0,0.00015505,2]
[399815956,1766698241018,-230.76553678,0.00015505,2]
[399815957,1766698241027,-757.75865028,0.00015505,2]
[399815958,1766698241037,-532.23,0.00015505,2]
[399815959,1766698241047,-532.23,0.00015505,2]
[399815960,1766698241058,-532.23,0.00015505,2]
[399815961,1766698241070,-532.23,0.00015505,2]
[399815962,1766698241079,-150.0,0.00015505,2]
[399815963,1766698241089,-14092.2817,0.00015506,2]
[399815964,1766698241100,-5458.71036405,0.0001566,2]
[399815965,1766698241111,-1000.0,0.000157,2]
[399815966,1766698241120,-757.75865028,0.00015704,2]
[399815967,1766698241131,-229.34538253,0.00015738,2]
[399815968,1766698241140,-151.0,0.00015751,2]
[399815969,1766698241150,-151.0,0.00015752,2]
[399815970,1766698241159,-230.76553677,0.00015756,2]
[399815971,1766698241169,-1500.0,0.00015764,2]
[399815972,1766698241179,-5458.71036405,0.00015815,2]
[399815973,1766698241188,-1340.62,0.00015835,2]
[399815974,1766698241198,-757.75865028,0.00015904,2]
[399815975,1766698241208,-2580.25977977,0.00015907,2]
[399815976,1766698241218,-515.83487979,0.00015907,2]
[399815977,1766698241229,-229.34538253,0.0001597,2]
[399815978,1766698241239,-5458.71036405,0.0001597,2]
[399815979,1766698241249,-151.0,0.00015997,2]
[399815980,1766698241259,-151.0,0.00015997,2]
[399815981,1766698241269,-166922.66208473,0.00016,2]
[399815982,1766698241280,-611.79223266,0.00016,2]
[399815983,1766698241289,-941118.88678502,0.00016,4]
[399815984,1766698241299,-230.76553677,0.00016007,2]
[399815985,1766698241308,-757.75865028,0.00016103,2]
[399815986,1766698241318,-2580.25977977,0.00016106,2]
[399815987,1766698241328,-1197.0,0.00016107,2]
[399815988,1766698241338,-5458.71036405,0.00016125,2]
[399815989,1766698241348,-150.0,0.00016137,2]
[399815990,1766698241358,-578.20924308,0.00016149,2]
[399815991,1766698241368,-151.0,0.00016149,2]
[399815992,1766698241378,-151.0,0.00016149,2]
[399815993,1766698241388,-500.0,0.00016149,2]
[399815994,1766698241398,-500.0,0.00016149,2]
[399815995,1766698241408,-500.0,0.00016149,2]
[399815996,1766698241418,-500.0,0.00016149,2]
[399815997,1766698241427,-500.0,0.00016149,2]
[399815998,1766698241436,-500.0,0.00016149,2]
[399815999,1766698241446,-500.0,0.00016149,2]
[399816000,1766698241455,-574.12855637,0.00016149,2]
[399816001,1766698241465,-500.0,0.00016149,2]
[399816002,1766698241475,-500.0,0.00016149,2]
[399816003,1766698241484,-500.0,0.00016149,2]
[399816004,1766698241493,-500.0,0.00016149,2]
[399816005,1766698241503,-151.0,0.00016149,2]
[399816006,1766698241512,-250.0,0.00016149,2]
[399816007,1766698241522,-250.0,0.00016149,2]
[399816008,1766698241531,-250.0,0.00016149,2]
[399816009,1766698241541,-250.0,0.00016149,2]
[399816010,1766698241551,-500.0,0.00016149,2]
[399816011,1766698241561,-250.0,0.00016149,2]
[399816012,1766698241571,-500.0,0.00016149,2]
[399816013,1766698241580,-250.0,0.00016149,2]
[399816014,1766698241589,-500.0,0.00016149,2]
[399816015,1766698241599,-250.0,0.00016149,2]
[399816016,1766698241609,-186.66093114,0.00016149,2]
[399816017,1766698241618,-500.0,0.00016149,2]
[399816018,1766698241627,-500.0,0.00016149,2]
[399816019,1766698241637,-500.0,0.00016149,2]
[399816020,1766698241646,-500.0,0.00016149,2]
[399816021,1766698241656,-322.6107,0.00016149,2]
[399816022,1766698241665,-500.0,0.00016149,2]
[399816023,1766698241674,-500.0,0.00016149,2]
[399816024,1766698241684,-500.0,0.00016149,2]
[399816025,1766698241694,-500.0,0.00016149,2]
[399816026,1766698241703,-620.0,0.00016149,2]
[399816027,1766698241713,-200.0,0.00016149,2]
[399816028,1766698241723,-207.4,0.00016149,2]
[399816029,1766698241732,-215.0738,0.00016149,2]
[399816030,1766698241742,-223.0315306,0.00016149,2]
[399816031,1766698241751,-231.28369723,0.00016149,2]
[399816032,1766698241761,-239.84119403,0.00016149,2]
[399816033,1766698241770,-248.71531821,0.00016149,2]
[399816034,1766698241781,-257.91778498,0.00016149,2]
[399816035,1766698241790,-267.46074303,0.00016149,2]
[399816036,1766698241799,-277.35679052,0.00016149,2]
[399816037,1766698241809,-500.0,0.00016183,2]
[399816038,1766698241819,-500.0,0.00016183,2]
[399816039,1766698241828,-500.0,0.00016183,2]
[399816040,1766698241838,-575.79192848,0.00016183,2]
[399816041,1766698241848,-500.0,0.00016183,2]
[399816042,1766698241857,-500.0,0.00016183,2]
[399816043,1766698241867,-500.0,0.00016183,2]
[399816044,1766698241877,-500.0,0.00016183,2]
[399816045,1766698241886,-500.0,0.00016183,2]
[399816046,1766698241895,-500.0,0.00016183,2]
[399816047,1766698241905,-500.0,0.00016183,2]
[399816048,1766698241916,-500.0,0.00016183,2]
[399816049,1766698241925,-310.71387342,0.00016183,2]
[399816050,1766698241935,-500.0,0.00016183,2]
[399816051,1766698241944,-500.0,0.00016183,2]
[399816052,1766698241954,-479.05040621,0.00016183,2]
[399816053,1766698241964,-500.0,0.00016183,2]
[399816054,1766698241974,-511.36256137,0.00016183,2]
[399816055,1766698241983,-500.0,0.00016183,2]
[399816056,1766698241993,-500.0,0.00016183,2]
[399816057,1766698242003,-500.0,0.00016183,2]
[399816058,1766698242013,-500.0,0.00016183,2]
[399816059,1766698242023,-500.0,0.00016183,2]
[399816060,1766698242033,-500.0,0.00016183,2]
[399816061,1766698242043,-500.0,0.00016183,2]
[399816062,1766698242053,-374.62630922,0.00016183,2]
[399816063,1766698242068,-1112.7,0.00016192,2]
[399816064,1766698242078,-150.0,0.00016192,2]
[399816065,1766698242088,-150.0,0.00016192,2]
[399816066,1766698242099,-301.19,0.00016192,2]
[399816067,1766698242109,-150.0,0.00016192,2]
[399816068,1766698242119,-150.0,0.00016192,2]
[399816069,1766698242128,-554.09,0.00016192,2]
[399816070,1766698242140,-150.0,0.00016192,2]
[399816071,1766698242150,-150.0,0.00016192,2]
[399816072,1766698242159,-1220.37,0.00016192,2]
[399816073,1766698242169,-150.0,0.00016192,2]
[399816074,1766698242178,-381.64,0.00016192,2]
[399816075,1766698242188,-1220.37,0.00016192,2]
[399816076,1766698242198,-1220.37,0.00016192,2]
[399816077,1766698242207,-1220.37,0.00016192,2]
[399816078,1766698242217,-1220.37,0.00016192,2]
[399816079,1766698242226,-229.34538253,0.00016203,2]
[399816080,1766698242236,-250.0,0.00016222,2]
[399816081,1766698242246,-13627.59112142,0.0001628,2]
[399816082,1766698242256,-5458.71036405,0.0001628,2]
[399816083,1766698242265,-757.75865028,0.00016302,2]
[399816084,1766698242275,-2580.25977977,0.00016304,2]
[399816085,1766698242286,-948.42200433,0.00016329,2]
[399816086,1766698242296,-152.02986796,0.00016362,2]
[399816087,1766698242306,-948.42200433,0.00016384,2]
[399816088,1766698242316,-1220.37,0.00016384,2]
[399816089,1766698242326,-1220.37,0.00016384,2]
[399816090,1766698242335,-1220.37,0.00016384,2]
[399816091,1766698242344,-1220.37,0.00016384,2]
[399816092,1766698242354,-1220.37,0.00016384,2]
[399816093,1766698242363,-515.83487979,0.00016404,2]
[399816094,1766698242373,-229.34538253,0.00016435,2]
[399816095,1766698242383,-13627.59112142,0.00016435,2]
[399816096,1766698242392,-5458.71036405,0.00016435,2]
[399816097,1766698242403,-500.0,0.00016438,2]
[399816098,1766698242413,-500.0,0.00016438,2]